[Event "NJSK 2018 Jeugd A"]
[Site "Assen, Netherlands"]
[Date "2018.05.04"]
[Round "6.2"]
[White "Van Baar, Esper"]
[Black "Kokje, Joris"]
[Result "0-1"]
[TimeControl "40/90m+30m+30sec/move"]
[WhiteElo "2237"]
[BlackElo "2265"]

1. e4 {[%clk 01:30:58]} {[%emt 00:00:01]} c5 {[%clk 01:30:56]} {[%emt
00:00:05]} 2. Nf3 {[%clk 01:31:21]} {[%emt 00:00:07]} d6 {[%clk 01:31:19]}
{[%emt 00:00:07]} 3. d4 {[%clk 01:31:47]} {[%emt 00:00:03]} cxd4 {[%clk
01:31:43]} {[%emt 00:00:06]} 4. Nxd4 {[%clk 01:32:14]} {[%emt 00:00:03]} Nf6
{[%clk 01:32:07]} {[%emt 00:00:07]} 5. Nc3 {[%clk 01:32:39]} {[%emt 00:00:05]}
a6 {[%clk 01:32:33]} {[%emt 00:00:05]} 6. h3 {[%clk 01:32:13]} {[%emt
00:00:56]} e6 {[%clk 01:32:31]} {[%emt 00:00:32]} 7. g4 {[%clk 01:32:03]}
{[%emt 00:00:40]} h6 {[%clk 01:32:52]} {[%emt 00:00:08]} 8. Bg2 {[%clk
01:32:14]} {[%emt 00:00:18]} g5 {[%clk 01:33:11]} {[%emt 00:00:11]} 9. Be3
{[%clk 01:32:25]} {[%emt 00:00:19]} Nbd7 {[%clk 01:33:27]} {[%emt 00:00:15]} 10.
Qe2 {[%clk 01:30:44]} {[%emt 00:02:11]} Ne5 {[%clk 01:30:54]} {[%emt 00:03:03]}
11. O-O-O {[%clk 01:30:46]} {[%emt 00:00:27]} Nfd7 {[%clk 01:30:13]} {[%emt
00:01:12]} 12. Kb1 {[%clk 01:30:08]} {[%emt 00:01:08]} b5 {[%clk 01:22:19]}
{[%emt 00:08:24]} 13. f4 {[%clk 01:30:17]} {[%emt 00:00:20]} gxf4 {[%clk
01:22:18]} {[%emt 00:00:32]} 14. Bxf4 {[%clk 01:30:43]} {[%emt 00:00:04]} Bb7
{[%clk 01:20:48]} {[%emt 00:02:00]} 15. Rhf1 {[%clk 01:29:08]} {[%emt
00:02:03]} Qc7 {[%clk 01:06:12]} {[%emt 00:15:07]} 16. Qf2 {[%clk 01:27:17]}
{[%emt 00:02:21]} O-O-O {[%clk 01:02:40]} {[%emt 00:04:03]} 17. Nce2 {[%clk
01:24:33]} {[%emt 00:03:14]} Rh7 {[%clk 00:52:26]} {[%emt 00:10:43]} 18. Ng3
{[%clk 01:22:04]} {[%emt 00:02:59]} Bg7 {[%clk 00:52:11]} {[%emt 00:00:45]} 19.
Nh5 {[%clk 01:20:36]} {[%emt 00:01:58]} Bh8 {[%clk 00:49:34]} {[%emt 00:03:07]}
20. Bc1 {[%clk 01:13:44]} {[%emt 00:07:23]} Kb8 {[%clk 00:45:56]} {[%emt
00:04:08]} 21. Qe2 {[%clk 01:03:05]} {[%emt 00:11:08]} Rc8 {[%clk 00:40:34]}
{[%emt 00:05:52]} 22. Rf2 {[%clk 01:01:44]} {[%emt 00:01:50]} Qb6 {[%clk
00:37:18]} {[%emt 00:03:48]} 23. Nf3 {[%clk 00:29:23]} {[%emt 00:32:50]} Nc4
{[%clk 00:34:57]} {[%emt 00:02:52]} 24. Ne1 {[%clk 00:28:27]} {[%emt 00:01:25]}
Bd4 {[%clk 00:30:10]} {[%emt 00:05:17]} 25. Rf1 {[%clk 00:27:13]} {[%emt
00:01:45]} Be3 {[%clk 00:28:01]} {[%emt 00:02:38]} 26. Nd3 {[%clk 00:20:21]}
{[%emt 00:07:22]} Bxc1 {[%clk 00:26:47]} {[%emt 00:01:44]} 27. Rxc1 {[%clk
00:20:00]} {[%emt 00:00:51]} a5 {[%clk 00:23:08]} {[%emt 00:04:09]} 28. Nf6
{[%clk 00:17:27]} {[%emt 00:03:04]} Nxf6 {[%clk 00:23:30]} {[%emt 00:00:07]} 29.
Rxf6 {[%clk 00:17:53]} {[%emt 00:00:04]} Qd4 {[%clk 00:22:06]} {[%emt
00:01:55]} 30. Rcf1 {[%clk 00:08:27]} {[%emt 00:09:56]} Rc7 {[%clk 00:18:34]}
{[%emt 00:04:02]} 31. c3 {[%clk 00:08:53]} {[%emt 00:00:03]} Qb6 {[%clk
00:17:36]} {[%emt 00:01:28]} 32. Qf2 {[%clk 00:08:44]} {[%emt 00:00:39]} Qa6
{[%clk 00:16:07]} {[%emt 00:01:59]} 33. Rd1 {[%clk 00:07:31]} {[%emt 00:01:43]}
b4 {[%clk 00:12:35]} {[%emt 00:04:03]} 34. cxb4 {[%clk 00:04:40]} {[%emt
00:03:21]} Qb5 {[%clk 00:10:52]} {[%emt 00:02:12]} 35. Qe1 {[%clk 00:03:28]}
{[%emt 00:01:42]} axb4 {[%clk 00:09:56]} {[%emt 00:01:26]} 36. Qxb4 {[%clk
00:03:01]} {[%emt 00:00:57]} Qxb4 {[%clk 00:10:17]} {[%emt 00:00:09]} 37. Nxb4
{[%clk 00:03:26]} {[%emt 00:00:06]} Ne3 {[%clk 00:10:42]} {[%emt 00:00:05]} 38.
Rxd6 {[%clk 00:01:56]} {[%emt 00:02:00]} Nxg2 {[%clk 00:11:06]} {[%emt
00:00:05]} 39. Na6+ {[%clk 00:01:44]} {[%emt 00:00:42]} Bxa6 {[%clk 00:10:49]}
{[%emt 00:00:47]} 40. Rxa6 {[%clk 00:02:10]} {[%emt 00:00:04]} h5 {[%clk
00:10:39]} {[%emt 00:00:41]} 41. g5 {[%clk 00:00:52]} {[%emt 00:01:47]} Rg7
{[%clk 00:08:40]} {[%emt 00:02:29]} 42. Ra5 {[%clk 00:19:07]} {[%emt 00:12:16]}
Rg8 {[%clk 00:36:20]} {[%emt 00:02:49]} 43. b4 {[%clk 00:17:35]} {[%emt
00:02:04]} Rd8 {[%clk 00:36:02]} {[%emt 00:00:46]} 44. Rf3 {[%clk 00:13:49]}
{[%emt 00:04:16]} Rd4 {[%clk 00:23:43]} {[%emt 00:12:50]} 45. Rb5+ {[%clk
00:10:36]} {[%emt 00:03:42]} Kc8 {[%clk 00:23:46]} {[%emt 00:00:27]} 46. a3
{[%clk 00:08:02]} {[%emt 00:03:04]} Rxe4 {[%clk 00:23:24]} {[%emt 00:00:51]} 47.
g6 {[%clk 00:06:55]} {[%emt 00:01:37]} fxg6 {[%clk 00:21:23]} {[%emt 00:02:31]}
48. Rf8+ {[%clk 00:06:57]} {[%emt 00:00:28]} Kd7 {[%clk 00:21:49]} {[%emt
00:00:05]} 49. Rf7+ {[%clk 00:07:10]} {[%emt 00:00:16]} Kd6 {[%clk 00:21:59]}
{[%emt 00:00:20]} 0-1

[Event "NJSK 2018 Jeugd A"]
[Site "Assen, Netherlands"]
[Date "2018.05.04"]
[Round "6.3"]
[White "Nguyen, Kevin"]
[Black "Schoppen, Casper"]
[Result "0-1"]
[TimeControl "40/90m+30m+30sec/move"]
[WhiteElo "2122"]
[BlackElo "2396"]

1. Nf3 {[%clk 01:30:58]} {[%emt 00:00:02]} d5 {[%clk 01:30:31]} {[%emt
00:00:30]} 2. g3 {[%clk 01:31:24]} {[%emt 00:00:04]} Nf6 {[%clk 01:30:48]}
{[%emt 00:00:13]} 3. Bg2 {[%clk 01:31:51]} {[%emt 00:00:03]} e6 {[%clk
01:31:00]} {[%emt 00:00:18]} 4. O-O {[%clk 01:31:29]} {[%emt 00:00:52]} Be7
{[%clk 01:31:19]} {[%emt 00:00:11]} 5. d3 {[%clk 01:31:15]} {[%emt 00:00:44]}
c5 {[%clk 01:31:27]} {[%emt 00:00:22]} 6. Nbd2 {[%clk 01:27:56]} {[%emt
00:03:49]} Nc6 {[%clk 01:31:29]} {[%emt 00:00:27]} 7. c4 {[%clk 01:27:19]}
{[%emt 00:01:08]} d4 {[%clk 01:31:09]} {[%emt 00:00:49]} 8. Re1 {[%clk
01:24:00]} {[%emt 00:03:50]} O-O {[%clk 01:30:23]} {[%emt 00:01:16]} 9. Nf1
{[%clk 01:23:45]} {[%emt 00:00:45]} e5 {[%clk 01:27:35]} {[%emt 00:03:18]} 10.
e4 {[%clk 01:23:24]} {[%emt 00:00:52]} Ne8 {[%clk 01:25:48]} {[%emt 00:02:16]}
11. h4 {[%clk 01:16:35]} {[%emt 00:07:18]} a6 {[%clk 01:18:15]} {[%emt
00:08:03]} 12. N1h2 {[%clk 01:15:18]} {[%emt 00:01:48]} b5 {[%clk 01:18:12]}
{[%emt 00:00:33]} 13. b3 {[%clk 01:15:35]} {[%emt 00:00:13]} Nf6 {[%clk
01:09:23]} {[%emt 00:09:19]} 14. Ng5 {[%clk 01:11:15]} {[%emt 00:04:49]} h6
{[%clk 01:06:37]} {[%emt 00:03:15]} 15. Nh3 {[%clk 01:10:41]} {[%emt 00:01:05]}
bxc4 {[%clk 01:04:24]} {[%emt 00:02:44]} 16. bxc4 {[%clk 01:11:00]} {[%emt
00:00:11]} Rb8 {[%clk 01:03:35]} {[%emt 00:01:19]} 17. f4 {[%clk 01:10:48]}
{[%emt 00:00:41]} Qa5 {[%clk 01:01:58]} {[%emt 00:02:07]} 18. Bd2 {[%clk
01:07:18]} {[%emt 00:04:00]} Qa3 {[%clk 01:01:44]} {[%emt 00:00:44]} 19. Nf2
{[%clk 01:06:27]} {[%emt 00:01:22]} Bd7 {[%clk 01:00:34]} {[%emt 00:01:40]} 20.
f5 {[%clk 01:04:48]} {[%emt 00:02:09]} Nb4 {[%clk 00:51:48]} {[%emt 00:09:15]}
21. Bc1 {[%clk 00:26:21]} {[%emt 00:38:57]} Qa4 {[%clk 00:48:20]} {[%emt
00:03:58]} 22. Rb1 {[%clk 00:18:45]} {[%emt 00:08:06]} Qxd1 {[%clk 00:45:48]}
{[%emt 00:03:02]} 23. Rxd1 {[%clk 00:19:02]} {[%emt 00:00:14]} Nxa2 {[%clk
00:45:55]} {[%emt 00:00:29]} 24. Ra1 {[%clk 00:17:45]} {[%emt 00:01:43]} Nxc1
{[%clk 00:40:33]} {[%emt 00:05:51]} 25. Rdxc1 {[%clk 00:18:07]} {[%emt
00:00:07]} Ra8 {[%clk 00:40:31]} {[%emt 00:00:33]} 26. Nf3 {[%clk 00:16:26]}
{[%emt 00:02:10]} Bd6 {[%clk 00:40:42]} {[%emt 00:00:19]} 27. Nd2 {[%clk
00:16:27]} {[%emt 00:00:30]} Rfb8 {[%clk 00:40:15]} {[%emt 00:00:56]} 28. Ra2
{[%clk 00:16:33]} {[%emt 00:00:25]} a5 {[%clk 00:39:14]} {[%emt 00:01:31]} 29.
Bf3 {[%clk 00:16:16]} {[%emt 00:00:47]} Bc7 {[%clk 00:31:01]} {[%emt 00:08:43]}
30. Rca1 {[%clk 00:15:26]} {[%emt 00:01:20]} a4 {[%clk 00:30:58]} {[%emt
00:00:33]} 31. Bd1 {[%clk 00:10:57]} {[%emt 00:04:58]} Ba5 {[%clk 00:29:12]}
{[%emt 00:02:16]} 32. Nb1 {[%clk 00:09:13]} {[%emt 00:02:14]} Be1 {[%clk
00:28:53]} {[%emt 00:00:49]} 33. Kf1 {[%clk 00:09:03]} {[%emt 00:00:41]} Bxf2
{[%clk 00:28:07]} {[%emt 00:01:15]} 34. Kxf2 {[%clk 00:09:29]} {[%emt
00:00:04]} Rb4 {[%clk 00:23:45]} {[%emt 00:04:52]} 35. Nd2 {[%clk 00:08:28]}
{[%emt 00:01:31]} h5 {[%clk 00:21:20]} {[%emt 00:02:55]} 36. Nb3 {[%clk
00:04:12]} {[%emt 00:04:46]} Ng4+ {[%clk 00:20:37]} {[%emt 00:01:13]} 37. Kg1
{[%clk 00:03:21]} {[%emt 00:01:22]} Ne3 {[%clk 00:16:07]} {[%emt 00:04:59]} 38.
Nxc5 {[%clk 00:03:13]} {[%emt 00:00:38]} Nxd1 {[%clk 00:16:32]} {[%emt
00:00:05]} 39. Rxd1 {[%clk 00:02:31]} {[%emt 00:01:12]} Bc6 {[%clk 00:16:32]}
{[%emt 00:00:30]} 40. Rf1 {[%clk 00:00:36]} {[%emt 00:02:26]} Ra5 {[%clk
00:16:22]} {[%emt 00:00:40]} 41. Ne6 {[%clk 00:00:39]} {[%emt 00:00:27]} fxe6
{[%clk 00:16:35]} {[%emt 00:00:16]} 42. fxe6 {[%clk 00:01:06]} {[%emt
00:00:03]} Ra7 {[%clk 00:16:21]} {[%emt 00:00:44]} 43. Raf2 {[%clk 00:01:06]}
{[%emt 00:00:30]} Rb8 {[%clk 00:15:58]} {[%emt 00:00:53]} 0-1

[Event "NJSK 2018 Jeugd A"]
[Site "Assen, Netherlands"]
[Date "2018.05.04"]
[Round "6.4"]
[White "Vrolijk, Liam"]
[Black "Reichardt, Robin"]
[Result "1-0"]
[TimeControl "40/90m+30m+30sec/move"]
[WhiteElo "2432"]
[BlackElo "1936"]

1. Nf3 {[%clk 01:30:54]} {[%emt 00:00:06]} d5 {[%clk 01:30:32]} {[%emt
00:00:28]} 2. e3 {[%clk 01:31:17]} {[%emt 00:00:08]} Nf6 {[%clk 01:30:31]}
{[%emt 00:00:30]} 3. c4 {[%clk 01:31:36]} {[%emt 00:00:11]} c6 {[%clk
01:30:29]} {[%emt 00:00:32]} 4. d4 {[%clk 01:31:55]} {[%emt 00:00:11]} e6
{[%clk 01:30:18]} {[%emt 00:00:42]} 5. b3 {[%clk 01:32:01]} {[%emt 00:00:23]}
Nbd7 {[%clk 01:29:57]} {[%emt 00:00:50]} 6. Bb2 {[%clk 01:32:13]} {[%emt
00:00:19]} b6 {[%clk 01:27:43]} {[%emt 00:02:45]} 7. Bd3 {[%clk 01:31:39]}
{[%emt 00:01:03]} Be7 {[%clk 01:24:43]} {[%emt 00:03:30]} 8. O-O {[%clk
01:31:39]} {[%emt 00:00:30]} O-O {[%clk 01:23:39]} {[%emt 00:01:34]} 9. Nc3
{[%clk 01:30:00]} {[%emt 00:02:09]} Bb7 {[%clk 01:20:53]} {[%emt 00:03:16]} 10.
Qc2 {[%clk 01:26:08]} {[%emt 00:04:22]} Rc8 {[%clk 01:18:40]} {[%emt 00:02:42]}
11. Rad1 {[%clk 01:21:43]} {[%emt 00:04:56]} Qc7 {[%clk 01:11:25]} {[%emt
00:07:45]} 12. Rfe1 {[%clk 01:09:42]} {[%emt 00:12:31]} Rfd8 {[%clk 01:06:28]}
{[%emt 00:05:28]} 13. Ne5 {[%clk 01:05:20]} {[%emt 00:04:51]} dxc4 {[%clk
01:01:58]} {[%emt 00:05:01]} 14. bxc4 {[%clk 01:03:23]} {[%emt 00:02:27]} c5
{[%clk 00:55:03]} {[%emt 00:07:24]} 15. Nxd7 {[%clk 00:59:46]} {[%emt
00:04:07]} Rxd7 {[%clk 00:53:23]} {[%emt 00:02:11]} 16. d5 {[%clk 00:57:10]}
{[%emt 00:03:06]} Rcd8 {[%clk 00:45:18]} {[%emt 00:08:35]} 17. Nb5 {[%clk
00:54:49]} {[%emt 00:02:50]} Qb8 {[%clk 00:44:16]} {[%emt 00:01:31]} 18. dxe6
{[%clk 00:47:28]} {[%emt 00:07:53]} fxe6 {[%clk 00:43:15]} {[%emt 00:01:31]} 19.
Bxf6 {[%clk 00:47:42]} {[%emt 00:00:14]} Bxf6 {[%clk 00:43:21]} {[%emt
00:00:25]} 20. Bxh7+ {[%clk 00:48:01]} {[%emt 00:00:11]} Kf8 {[%clk 00:39:52]}
{[%emt 00:03:58]} 21. Rxd7 {[%clk 00:40:20]} {[%emt 00:08:12]} Rxd7 {[%clk
00:39:58]} {[%emt 00:00:24]} 22. Rd1 {[%clk 00:40:02]} {[%emt 00:00:48]} Qd8
{[%clk 00:36:25]} {[%emt 00:04:02]} 23. Rxd7 {[%clk 00:38:51]} {[%emt
00:01:42]} Qxd7 {[%clk 00:36:53]} {[%emt 00:00:02]} 24. Nxa7 {[%clk 00:35:43]}
{[%emt 00:03:38]} Ba6 {[%clk 00:34:16]} {[%emt 00:03:08]} 25. Nb5 {[%clk
00:34:46]} {[%emt 00:01:27]} Bxb5 {[%clk 00:34:14]} {[%emt 00:00:32]} 26. cxb5
{[%clk 00:35:07]} {[%emt 00:00:09]} Qxb5 {[%clk 00:34:05]} {[%emt 00:00:39]} 27.
Bd3 {[%clk 00:33:49]} {[%emt 00:01:48]} Qb4 {[%clk 00:28:51]} {[%emt 00:05:44]}
28. a4 {[%clk 00:33:45]} {[%emt 00:00:34]} Qc3 {[%clk 00:27:37]} {[%emt
00:01:44]} 29. Qxc3 {[%clk 00:32:41]} {[%emt 00:01:33]} Bxc3 {[%clk 00:27:52]}
{[%emt 00:00:16]} 30. g3 {[%clk 00:33:04]} {[%emt 00:00:07]} Ke7 {[%clk
00:24:53]} {[%emt 00:03:30]} 31. f4 {[%clk 00:30:41]} {[%emt 00:02:52]} Bd2
{[%clk 00:15:20]} {[%emt 00:10:03]} 32. Kf2 {[%clk 00:31:02]} {[%emt 00:00:09]}
Kd6 {[%clk 00:13:49]} {[%emt 00:02:00]} 33. Bc4 {[%clk 00:31:16]} {[%emt
00:00:17]} e5 {[%clk 00:13:18]} {[%emt 00:01:01]} 34. Kf3 {[%clk 00:30:31]}
{[%emt 00:01:15]} exf4 {[%clk 00:12:33]} {[%emt 00:01:16]} 35. gxf4 {[%clk
00:22:20]} {[%emt 00:08:40]} Bc3 {[%clk 00:10:26]} {[%emt 00:02:37]} 36. h4
{[%clk 00:22:00]} {[%emt 00:00:49]} Ke7 {[%clk 00:10:12]} {[%emt 00:00:45]} 37.
h5 {[%clk 00:21:12]} {[%emt 00:01:18]} Kf6 {[%clk 00:09:55]} {[%emt 00:00:48]}
38. e4 {[%clk 00:21:11]} {[%emt 00:00:30]} g5 {[%clk 00:08:24]} {[%emt
00:02:01]} 39. hxg6 {[%clk 00:21:21]} {[%emt 00:00:20]} Kxg6 {[%clk 00:08:47]}
{[%emt 00:00:07]} 40. e5 {[%clk 00:21:41]} {[%emt 00:00:10]} Kf5 {[%clk
00:08:25]} {[%emt 00:00:52]} 41. Bd3+ {[%clk 00:22:03]} {[%emt 00:00:08]} Ke6
{[%clk 00:08:48]} {[%emt 00:00:06]} 42. Ke4 {[%clk 00:22:28]} {[%emt 00:00:06]}
1-0

[Event "NJSK 2018 Jeugd A"]
[Site "Assen, Netherlands"]
[Date "2018.05.04"]
[Round "6.5"]
[White "Jongste, David"]
[Black "Mesman, Edwyn"]
[Result "0-1"]
[TimeControl "40/90m+30m+30sec/move"]
[WhiteElo "2092"]
[BlackElo "2082"]

1. e4 {[%clk 01:30:58]} {[%emt 00:00:01]} c5 {[%clk 01:30:41]} {[%emt
00:00:19]} 2. Nf3 {[%clk 01:31:23]} {[%emt 00:00:06]} d6 {[%clk 01:31:03]}
{[%emt 00:00:08]} 3. d4 {[%clk 01:31:28]} {[%emt 00:00:24]} cxd4 {[%clk
01:31:27]} {[%emt 00:00:06]} 4. Nxd4 {[%clk 01:31:53]} {[%emt 00:00:05]} Nf6
{[%clk 01:31:53]} {[%emt 00:00:04]} 5. Nc3 {[%clk 01:32:16]} {[%emt 00:00:08]}
a6 {[%clk 01:32:19]} {[%emt 00:00:04]} 6. h3 {[%clk 01:31:41]} {[%emt
00:01:04]} e6 {[%clk 01:32:11]} {[%emt 00:00:38]} 7. g4 {[%clk 01:31:32]}
{[%emt 00:00:40]} h6 {[%clk 01:30:17]} {[%emt 00:02:24]} 8. Bg2 {[%clk
01:30:20]} {[%emt 00:01:41]} g5 {[%clk 01:29:33]} {[%emt 00:01:14]} 9. Be3
{[%clk 01:30:03]} {[%emt 00:00:47]} Nbd7 {[%clk 01:29:49]} {[%emt 00:00:14]} 10.
Qe2 {[%clk 01:28:52]} {[%emt 00:01:40]} Ne5 {[%clk 01:29:56]} {[%emt 00:00:24]}
11. O-O-O {[%clk 01:28:22]} {[%emt 00:01:00]} Nfd7 {[%clk 01:29:57]} {[%emt
00:00:29]} 12. Kb1 {[%clk 01:28:18]} {[%emt 00:00:33]} b5 {[%clk 01:24:56]}
{[%emt 00:05:31]} 13. Nf5 {[%clk 01:19:13]} {[%emt 00:09:36]} Qc7 {[%clk
01:15:12]} {[%emt 00:10:14]} 14. h4 {[%clk 01:14:16]} {[%emt 00:05:27]} Rg8
{[%clk 01:05:40]} {[%emt 00:10:02]} 15. hxg5 {[%clk 00:52:33]} {[%emt
00:22:13]} hxg5 {[%clk 01:05:54]} {[%emt 00:00:17]} 16. Bxg5 {[%clk 00:39:41]}
{[%emt 00:13:22]} Rxg5 {[%clk 00:45:15]} {[%emt 00:21:08]} 17. f4 {[%clk
00:38:08]} {[%emt 00:02:04]} Rg8 {[%clk 00:44:34]} {[%emt 00:01:10]} 18. fxe5
{[%clk 00:30:47]} {[%emt 00:07:52]} Nxe5 {[%clk 00:44:53]} {[%emt 00:00:10]} 19.
Rhe1 {[%clk 00:10:32]} {[%emt 00:20:45]} Bb7 {[%clk 00:42:42]} {[%emt
00:02:41]} 20. Ne3 {[%clk 00:06:16]} {[%emt 00:04:46]} O-O-O {[%clk 00:41:41]}
{[%emt 00:01:31]} 21. a4 {[%clk 00:05:39]} {[%emt 00:01:07]} bxa4 {[%clk
00:18:41]} {[%emt 00:23:30]} 22. Nxa4 {[%clk 00:05:02]} {[%emt 00:01:08]} Kb8
{[%clk 00:18:58]} {[%emt 00:00:13]} 23. Nc3 {[%clk 00:03:32]} {[%emt 00:01:58]}
Rc8 {[%clk 00:18:30]} {[%emt 00:00:59]} 24. Rd4 {[%clk 00:03:09]} {[%emt
00:00:53]} Qb6 {[%clk 00:13:35]} {[%emt 00:05:24]} 25. Red1 {[%clk 00:02:45]}
{[%emt 00:00:55]} Rxc3 {[%clk 00:12:14]} {[%emt 00:01:51]} 0-1

[Event "NJSK 2018 Jeugd A"]
[Site "Assen, Netherlands"]
[Date "2018.05.04"]
[Round "6.6"]
[White "Bekedam, Tyro"]
[Black "Kanbier, Max"]
[Result "1/2-1/2"]
[TimeControl "40/90m+30m+30sec/move"]
[WhiteElo "1955"]
[BlackElo "1857"]

1. e4 {[%clk 01:30:56]} {[%emt 00:00:04]} c6 {[%clk 01:30:57]} {[%emt
00:00:02]} 2. d4 {[%clk 01:31:19]} {[%emt 00:00:07]} d5 {[%clk 01:31:24]}
{[%emt 00:00:04]} 3. e5 {[%clk 01:31:31]} {[%emt 00:00:17]} c5 {[%clk
01:31:50]} {[%emt 00:00:05]} 4. dxc5 {[%clk 01:30:59]} {[%emt 00:01:02]} Nc6
{[%clk 01:31:44]} {[%emt 00:00:36]} 5. f4 {[%clk 01:27:17]} {[%emt 00:04:12]}
e6 {[%clk 01:29:11]} {[%emt 00:03:02]} 6. Be3 {[%clk 01:27:24]} {[%emt
00:00:24]} d4 {[%clk 01:29:22]} {[%emt 00:00:19]} 7. Bf2 {[%clk 01:27:47]}
{[%emt 00:00:06]} Bxc5 {[%clk 01:29:46]} {[%emt 00:00:07]} 8. Nd2 {[%clk
01:26:14]} {[%emt 00:02:02]} Nge7 {[%clk 01:27:06]} {[%emt 00:03:11]} 9. a3
{[%clk 01:24:45]} {[%emt 00:01:58]} a5 {[%clk 01:24:57]} {[%emt 00:02:39]} 10.
Ne4 {[%clk 01:22:14]} {[%emt 00:03:01]} b6 {[%clk 01:24:57]} {[%emt 00:00:30]}
11. Bd3 {[%clk 01:07:29]} {[%emt 00:15:15]} Bb7 {[%clk 01:22:48]} {[%emt
00:02:39]} 12. Qg4 {[%clk 01:05:53]} {[%emt 00:02:06]} g6 {[%clk 01:16:00]}
{[%emt 00:07:18]} 13. Nf6+ {[%clk 00:50:58]} {[%emt 00:15:25]} Kf8 {[%clk
01:16:20]} {[%emt 00:00:10]} 14. Nf3 {[%clk 00:50:35]} {[%emt 00:00:54]} h5
{[%clk 01:15:23]} {[%emt 00:01:27]} 15. Qh3 {[%clk 00:48:44]} {[%emt 00:02:20]}
Nd5 {[%clk 01:14:14]} {[%emt 00:01:39]} 16. Nxd5 {[%clk 00:48:51]} {[%emt
00:00:24]} Qxd5 {[%clk 01:14:33]} {[%emt 00:00:10]} 17. O-O {[%clk 00:47:33]}
{[%emt 00:01:48]} Ne7 {[%clk 01:07:54]} {[%emt 00:07:09]} 18. Rad1 {[%clk
00:31:47]} {[%emt 00:16:17]} Qd7 {[%clk 01:06:18]} {[%emt 00:02:05]} 19. c3
{[%clk 00:25:51]} {[%emt 00:06:26]} Nd5 {[%clk 01:03:53]} {[%emt 00:02:55]} 20.
Nxd4 {[%clk 00:13:29]} {[%emt 00:12:52]} Nxf4 {[%clk 01:02:51]} {[%emt
00:01:32]} 21. Nxe6+ {[%clk 00:11:36]} {[%emt 00:02:22]} Nxe6 {[%clk 00:59:18]}
{[%emt 00:04:04]} 22. Bxg6 {[%clk 00:06:59]} {[%emt 00:05:07]} Qxd1 {[%clk
00:55:51]} {[%emt 00:03:57]} 23. Rxd1 {[%clk 00:06:59]} {[%emt 00:00:30]} Rg8
{[%clk 00:55:25]} {[%emt 00:00:56]} 24. Bxf7 {[%clk 00:03:51]} {[%emt
00:03:38]} Rxg2+ {[%clk 00:44:58]} {[%emt 00:10:57]} 25. Qxg2 {[%clk 00:04:14]}
{[%emt 00:00:08]} Bxg2 {[%clk 00:45:21]} {[%emt 00:00:06]} 26. Bxe6 {[%clk
00:04:38]} {[%emt 00:00:06]} Ke7 {[%clk 00:44:34]} {[%emt 00:01:17]} 27. Bxc5+
{[%clk 00:03:43]} {[%emt 00:01:25]} Kxe6 {[%clk 00:43:37]} {[%emt 00:01:28]} 28.
Bxb6 {[%clk 00:03:51]} {[%emt 00:00:22]} Rg8 {[%clk 00:43:24]} {[%emt
00:00:42]} 29. Kf2 {[%clk 00:02:34]} {[%emt 00:01:47]} Bd5 {[%clk 00:43:48]}
{[%emt 00:00:06]} 30. Ke3 {[%clk 00:01:04]} {[%emt 00:02:00]} Rb8 {[%clk
00:42:48]} {[%emt 00:01:30]} 31. Bxa5 {[%clk 00:01:06]} {[%emt 00:00:29]} Rxb2
{[%clk 00:43:13]} {[%emt 00:00:04]} 32. h4 {[%clk 00:00:50]} {[%emt 00:00:46]}
Ra2 {[%clk 00:42:34]} {[%emt 00:01:09]} 33. Bb4 {[%clk 00:00:54]} {[%emt
00:00:26]} Rh2 {[%clk 00:41:31]} {[%emt 00:01:33]} 34. Rd4 {[%clk 00:00:51]}
{[%emt 00:00:33]} Rh3+ {[%clk 00:39:56]} {[%emt 00:02:05]} 35. Kf4 {[%clk
00:01:02]} {[%emt 00:00:19]} Rxh4+ {[%clk 00:39:38]} {[%emt 00:00:49]} 36. Kg5
{[%clk 00:01:28]} {[%emt 00:00:04]} Rh3 {[%clk 00:37:06]} {[%emt 00:03:01]} 37.
c4 {[%clk 00:01:26]} {[%emt 00:00:32]} Bf3 {[%clk 00:35:18]} {[%emt 00:02:18]}
38. Bd6 {[%clk 00:01:25]} {[%emt 00:00:31]} Rg3+ {[%clk 00:35:08]} {[%emt
00:00:41]} 39. Kh4 {[%clk 00:01:19]} {[%emt 00:00:36]} Rg4 {[%clk 00:32:21]}
{[%emt 00:03:17]} 40. Rxg4 {[%clk 00:01:44]} {[%emt 00:00:04]} hxg4 {[%clk
00:32:46]} {[%emt 00:00:05]} 41. a4 {[%clk 00:27:04]} {[%emt 00:05:09]} Kf5
{[%clk 01:02:16]} {[%emt 00:01:00]} 42. Kg3 {[%clk 00:26:17]} {[%emt 00:01:18]}
Ba8 {[%clk 01:02:25]} {[%emt 00:00:21]} 43. a5 {[%clk 00:25:30]} {[%emt
00:01:17]} Bb7 {[%clk 01:02:19]} {[%emt 00:00:36]} 44. Kf2 {[%clk 00:25:40]}
{[%emt 00:00:20]} Bc6 {[%clk 01:02:42]} {[%emt 00:00:07]} 45. a6 {[%clk
00:26:04]} {[%emt 00:00:07]} Ba8 {[%clk 01:03:07]} {[%emt 00:00:05]} 46. a7
{[%clk 00:26:14]} {[%emt 00:00:19]} Bb7 {[%clk 01:03:32]} {[%emt 00:00:04]} 47.
c5 {[%clk 00:25:09]} {[%emt 00:01:36]} Ba8 {[%clk 01:03:47]} {[%emt 00:00:16]}
48. Kg3 {[%clk 00:25:12]} {[%emt 00:00:26]} Bc6 {[%clk 01:04:12]} {[%emt
00:00:05]} 49. Be7 {[%clk 00:24:56]} {[%emt 00:00:46]} Kxe5 {[%clk 01:04:07]}
{[%emt 00:00:35]} 50. Kxg4 {[%clk 00:25:21]} {[%emt 00:00:05]} Ke6 {[%clk
01:04:24]} {[%emt 00:00:13]} 51. Bd6 {[%clk 00:25:43]} {[%emt 00:00:08]} Kd7
{[%clk 01:04:50]} {[%emt 00:00:04]} 52. Kf5 {[%clk 00:26:09]} {[%emt 00:00:04]}
Kc8 {[%clk 01:05:15]} {[%emt 00:00:05]} 53. Ke6 {[%clk 00:26:30]} {[%emt
00:00:09]} Kb7 {[%clk 01:05:41]} {[%emt 00:00:04]} 54. Bb8 {[%clk 00:26:54]}
{[%emt 00:00:05]} Bh1 {[%clk 01:06:05]} {[%emt 00:00:07]} 55. Kd6 {[%clk
00:27:20]} {[%emt 00:00:04]} Ka8 {[%clk 01:06:26]} {[%emt 00:00:09]} 56. Kc7
{[%clk 00:27:37]} {[%emt 00:00:13]} Bc6 {[%clk 01:06:41]} {[%emt 00:00:15]} 57.
Kb6 {[%clk 00:28:00]} {[%emt 00:00:07]} Bh1 {[%clk 01:07:07]} {[%emt 00:00:05]}
58. Bh2 {[%clk 00:28:25]} {[%emt 00:00:04]} Bg2 {[%clk 01:07:27]} {[%emt
00:00:10]} 59. Bg1 {[%clk 00:28:46]} {[%emt 00:00:08]} Bh1 {[%clk 01:07:51]}
{[%emt 00:00:06]} 60. Bf2 {[%clk 00:28:45]} {[%emt 00:00:31]} Bg2 {[%clk
01:08:16]} {[%emt 00:00:05]} 61. Kb5 {[%clk 00:29:05]} {[%emt 00:00:10]} Kxa7
{[%clk 01:08:26]} {[%emt 00:00:21]} 62. c6+ {[%clk 00:29:28]} {[%emt 00:00:08]}
Kb8 {[%clk 01:08:53]} {[%emt 00:00:03]} 63. Bg3+ {[%clk 00:29:54]} {[%emt
00:00:03]} Kc8 {[%clk 01:09:19]} {[%emt 00:00:05]} 64. c7 {[%clk 00:30:20]}
{[%emt 00:00:03]} Bh1 {[%clk 01:09:43]} {[%emt 00:00:06]} 65. Kb6 {[%clk
00:30:45]} {[%emt 00:00:05]} Bg2 {[%clk 01:10:08]} {[%emt 00:00:04]} 66. Bh4
{[%clk 00:30:34]} {[%emt 00:00:10]} 1/2-1/2